bitfinex/quotes_SOLUSD_20260202
["timestamp","ask_amount","ask_price","bid_price","bid_amount"]
[1770045431981,4.12606862,105.31,105.25,9.50094686]
[1770045432172,4.12606862,105.33,105.29,8.68127497]
[1770045432387,12.80734359,105.32,105.27,8.68127497]
[1770045432572,4.12606862,105.34,105.29,8.68127497]
[1770045432772,12.80734359,105.34,105.29,8.68127497]
[1770045433700,12.80734359,105.33,105.28,8.68127497]
[1770045433895,4.12606862,105.29,105.25,8.68127497]
[1770045434202,4.12606862,105.31,105.25,1.66608902]
[1770045434379,4.12606862,105.31,105.27,8.68127497]
[1770045434577,12.80734359,105.31,105.26,8.68127497]
[1770045434792,4.12606862,105.31,105.27,8.68127497]
[1770045435000,4.12606862,105.33,105.26,1.66608902]
[1770045435196,4.12606862,105.32,105.28,8.68127497]
[1770045435694,4.12606862,105.31,105.24,28.06608902]
[1770045435876,4.12606862,105.35,105.3,8.68127497]
[1770045436080,4.12606862,105.35,105.33,8.68127497]
[1770045436279,11.15342534,105.37,105.34,8.68127497]
[1770045436280,6.59821899,105.37,105.34,8.68127497]
[1770045436481,1e-08,105.37,105.36,8.68127497]
[1770045436709,0.3230551,105.38,105.36,8.68127497]
[1770045437017,0.14310223,105.38,105.36,8.68127497]
[1770045437325,0.14310223,105.38,105.37,8.68127497]
[1770045437817,4.5,105.42,105.37,8.68127497]
[1770045438002,4.5,105.41,105.33,33.22824751]
[1770045438190,4.5,105.41,105.38,8.68127497]
[1770045438521,0.1,105.43,105.4,8.68127497]
[1770045438710,0.1,105.43,105.41,8.68127497]
[1770045438901,4.5,105.41,105.36,26.4]
[1770045439102,0.1,105.43,105.37,8.68127497]
[1770045439300,4.5,105.41,105.37,8.68127497]
[1770045439613,4.5,105.4,105.32,23.7358844]
[1770045439820,13.18127497,105.38,105.34,8.68127497]
[1770045440016,13.18127497,105.39,105.34,8.68127497]
[1770045440207,4.5,105.39,105.31,0.14216157]
[1770045440423,4.5,105.39,105.35,8.68127497]
[1770045440710,8.68127497,105.4,105.35,8.68127497]
[1770045440890,4.5,105.38,105.32,9.49429903]
[1770045441090,13.18127497,105.38,105.34,8.68127497]
[1770045441316,4.5,105.37,105.33,8.68127497]
[1770045441496,4.5,105.39,105.31,35.87552367]
[1770045441701,4.5,105.38,105.34,8.68127497]
[1770045441999,4.5,105.38,105.36,8.68127497]
[1770045442195,13.18127497,105.42,105.32,0.28432314]
[1770045442408,0.1,105.43,105.4,8.68127497]
[1770045442612,4.5,105.45,105.42,8.68127497]
[1770045442925,4.5,105.46,105.42,8.68127497]
[1770045443094,4.5,105.46,105.36,0.28432314]
[1770045443095,4.5,105.46,105.43,8.68127497]
[1770045443496,4.5,105.48,105.44,8.68127497]
[1770045443705,13.18127497,105.48,105.44,8.68127497]
[1770045443903,4.5,105.48,105.45,8.68127497]
[1770045444124,4.5,105.53,105.47,8.68127497]
[1770045444414,8.68127497,105.52,105.47,8.68127497]
[1770045444615,13.18127497,105.49,105.44,8.68127497]
[1770045444805,23.26,105.55,105.39,26.38]
[1770045444806,13.18127497,105.46,105.39,26.38]
[1770045445006,4.5,105.46,105.39,26.38]
[1770045445317,13.18127497,105.46,105.42,8.68127497]
[1770045445522,4.5,105.45,105.38,9.48893266]
[1770045445819,4.5,105.44,105.39,8.68127497]
[1770045445995,13.18127497,105.43,105.38,8.68127497]
[1770045446200,4.5,105.41,105.37,8.68127497]
[1770045446518,8.68127497,105.44,105.39,8.68127497]
[1770045446701,8.68127497,105.44,105.37,33.21623613]
[1770045446702,8.68127497,105.44,105.4,8.68127497]
[1770045446903,13.18127497,105.44,105.39,8.68127497]
[1770045447117,4.5,105.4,105.36,8.68127497]
[1770045447322,4.5,105.4,105.35,47.53687241]
[1770045447505,4.5,105.42,105.36,9.49103865]
[1770045447711,4.5,105.42,105.37,9.49032008]
[1770045448109,13.18127497,105.42,105.37,8.68127497]
[1770045448416,4.5,105.4,105.36,8.68127497]
[1770045448598,8.68127497,105.42,105.37,8.68127497]
[1770045448796,4.5,105.41,105.37,8.68127497]
[1770045449007,8.68127497,105.42,105.37,8.68127497]
[1770045449310,4.5,105.41,105.37,8.68127497]
[1770045449505,4.5,105.42,105.39,8.68127497]
[1770045450222,4.5,105.43,105.4,8.68127497]
[1770045450406,13.18127497,105.45,105.4,8.68127497]
[1770045450613,4.5,105.44,105.4,8.68127497]
[1770045450922,31.94127497,105.49,105.37,8.68127497]
[1770045450923,4.5,105.41,105.37,8.68127497]
[1770045451120,13.18127497,105.41,105.36,8.68127497]
[1770045451323,4.5,105.42,105.38,8.68127497]
[1770045451520,13.18127497,105.42,105.38,8.68127497]
[1770045451821,13.18127497,105.41,105.37,8.68127497]
[1770045452128,27.53527085,105.46,105.35,38.044836]
[1770045452129,13.18127497,105.38,105.35,38.044836]
[1770045452303,4.5,105.38,105.35,8.68127497]
[1770045452804,4.5,105.37,105.34,8.68127497]
[1770045453625,4.5,105.37,105.33,8.68127497]
[1770045453823,4.5,105.37,105.28,35.06127497]
[1770045454013,13.18127497,105.37,105.33,8.68127497]
[1770045454433,4.5,105.37,105.34,8.68127497]
[1770045455102,4.5,105.37,105.33,8.68127497]
[1770045455523,13.18127497,105.36,105.32,8.68127497]
[1770045455831,4.5,105.36,105.32,8.68127497]
[1770045457026,4.5,105.35,105.3,9.49649997]
[1770045457329,13.18127497,105.35,105.3,8.68127497]
[1770045457832,13.18127497,105.35,105.31,8.68127497]
[1770045458007,13.18127497,105.34,105.3,8.68127497]
[1770045458204,13.18127497,105.33,105.29,8.68127497]
[1770045458419,4.5,105.31,105.27,8.68127497]
[1770045458632,13.18127497,105.31,105.27,8.68127497]
[1770045458829,4.5,105.31,105.27,8.68127497]
[1770045459204,13.18127497,105.31,105.27,8.68127497]
[1770045459407,4.5,105.33,105.27,9.49930457]
[1770045459626,4.5,105.33,105.3,8.68127497]
[1770045460020,4.5,105.35,105.32,8.68127497]
[1770045460217,4.5,105.35,105.31,8.68127497]
[1770045460408,13.18127497,105.34,105.3,8.68127497]
[1770045460611,4.5,105.34,105.3,8.68127497]
[1770045460824,4.5,105.34,105.27,33.24776092]
[1770045460825,4.5,105.32,105.28,8.68127497]
[1770045461128,4.5,105.32,105.29,8.68127497]
[1770045461722,4.5,105.32,105.3,8.68127497]
[1770045461927,13.18127497,105.34,105.3,8.68127497]
[1770045462108,4.5,105.34,105.31,8.68127497]
[1770045462311,4.5,105.34,105.32,8.68127497]
[1770045462627,4.5,105.35,105.29,9.49725637]
[1770045462827,4.5,105.35,105.32,8.68127497]
[1770045463033,4.5,105.35,105.33,8.68127497]
[1770045463823,4.5,105.35,105.31,8.68127497]
[1770045464319,4.5,105.35,105.33,8.68127497]
[1770045464521,13.18127497,105.35,105.31,8.68127497]
[1770045464726,4.5,105.35,105.32,8.68127497]
[1770045465025,4.5,105.35,105.31,8.68127497]
[1770045465233,4.5,105.34,105.3,8.68127497]
[1770045465410,193.29527085,105.4,105.28,8.68127497]
[1770045465411,4.5,105.32,105.28,8.68127497]
[1770045465610,4.5,105.31,105.27,8.68127497]
[1770045465811,4.5,105.31,105.28,8.68127497]
[1770045466218,4.5,105.31,105.27,8.68127497]
[1770045466830,4.5,105.3,105.26,8.68127497]
[1770045467237,13.18127497,105.3,105.25,8.68127497]
[1770045467442,4.5,105.27,105.24,0.2]
[1770045467641,13.18127497,105.27,105.24,0.2]
[1770045467821,13.18127497,105.26,105.24,0.2]
[1770045468133,4.5,105.25,105.24,0.2]
[1770045468440,4.5,105.24,105.17,9.50797302]
[1770045468618,13.18127497,105.21,105.16,18.19047208]
[1770045468814,4.5,105.21,105.18,8.68127497]
[1770045469039,13.18127497,105.21,105.17,8.68127497]
[1770045469333,13.18127497,105.21,105.12,26.38]
[1770045469334,4.5,105.19,105.12,23.78072753]
[1770045469634,13.18127497,105.17,105.13,8.68127497]
[1770045469810,13.18127497,105.17,105.11,9.51325186]
[1770045469811,13.18127497,105.15,105.1,8.68127497]
[1770045470133,4.5,105.15,105.11,8.68127497]
[1770045470318,13.18127497,105.17,105.13,8.68127497]
[1770045470638,4.5,105.17,105.14,8.68127497]
[1770045471337,4.5,105.15,105.09,9.51562141]
[1770045471539,4.5,105.14,105.1,8.68127497]
[1770045471739,4.5,105.11,105.08,8.68127497]
[1770045472035,4.5,105.1,105.06,8.68127497]
[1770045472533,4.5,105.09,105.04,9.51984882]
[1770045472716,13.18127497,105.09,105.04,8.68127497]
[1770045472918,13.18127497,105.08,105.03,0.2]
[1770045473150,4.5,105.07,105.03,8.88127497]
[1770045473438,4.5,105.07,105.04,8.68127497]
[1770045474133,4.5,105.1,105.06,8.68127497]
[1770045474435,4.5,105.12,105.08,8.68127497]
[1770045474831,4.5,105.11,105.03,33.52380222]
[1770045475033,4.5,105.11,105.08,8.68127497]
[1770045475422,8.68127497,105.11,105.06,8.68127497]
[1770045475730,4.5,105.07,105.03,0.2]
[1770045475937,13.18127497,105.07,105.03,0.2]
[1770045476233,13.18127497,105.07,105.03,8.88127497]
[1770045477229,13.18127497,105.06,105.03,0.2]
[1770045477537,4.4,105.04,104.99,35.92441556]
[1770045477834,4.4,105.04,105.01,8.68127497]
[1770045478039,4.4,105.04,105.0,18.2049208]
[1770045478214,4.4,105.04,105.0,8.68127497]
[1770045478418,4.4,105.04,104.99,26.4]
[1770045478613,4.4,105.05,105.01,8.68127497]
[1770045479421,4.4,105.05,105.02,8.68127497]
[1770045479736,13.08127497,105.07,105.02,8.68127497]
[1770045479932,4.4,105.06,105.02,8.68127497]
[1770045480333,4.4,105.04,105.01,8.68127497]
[1770045480535,4.4,105.04,104.98,26.42]
[1770045480536,4.4,105.03,105.0,8.68127497]
[1770045480830,8.68127497,105.05,104.98,26.42]
[1770045481022,8.68127497,105.04,104.99,8.68127497]
[1770045481422,4.55959399,105.08,105.01,8.68127497]
[1770045481724,8.68127497,105.14,105.02,0.40000001]
[1770045481725,0.14216157,105.13,105.02,0.40000001]
[1770045481947,8.68127497,105.07,105.02,8.68127497]
[1770045482125,8.68127497,105.05,105.0,8.68127497]
[1770045482320,0.28432314,105.1,105.0,8.68127497]
[1770045482536,8.68127497,105.14,105.05,8.68127497]
[1770045482750,4.29999999,105.09,105.05,8.68127497]
[1770045482935,12.98127496,105.09,105.05,8.68127497]
[1770045483138,12.98127496,105.07,105.03,8.68127497]
[1770045483537,4.29999999,105.06,105.02,8.68127497]
[1770045483845,4.29999999,105.06,105.03,8.68127497]
[1770045484033,4.29999999,105.08,105.04,8.68127497]
[1770045484234,8.68127497,105.09,105.04,8.68127497]
[1770045484235,4.29999999,105.1,105.06,8.68127497]
[1770045484434,4.29999999,105.1,105.07,8.68127497]
[1770045485059,4.29999999,105.09,105.05,8.68127497]
[1770045485227,4.29999999,105.09,105.06,8.68127497]
[1770045486126,4.29999999,105.11,105.07,8.68127497]
[1770045486332,5.36086188,105.18,105.04,0.40000001]
[1770045486333,4.29999999,105.08,105.04,8.68127497]
[1770045486529,4.29999999,105.08,105.05,8.68127497]
[1770045486741,4.29999999,105.08,105.04,8.68127497]
[1770045487650,12.98127496,105.1,105.06,8.68127497]
[1770045487831,4.29999999,105.09,105.06,8.68127497]
[1770045488034,4.29999999,105.11,105.07,8.68127497]
[1770045488431,4.29999999,105.09,105.05,8.71328598]
[1770045488652,4.29999999,105.08,105.04,8.71328598]
[1770045488841,4.29999999,105.08,105.06,8.71328598]
[1770045489047,4.29999999,105.08,105.05,8.71328598]
[1770045489647,4.29999999,105.08,105.04,8.71328598]
[1770045489860,4.29999999,105.08,105.05,8.71328598]
[1770045490231,4.29999999,105.1,105.06,8.71328598]
[1770045490928,4.29999999,105.09,105.06,8.71328598]
[1770045491254,4.29999999,105.09,105.05,8.71328598]
[1770045491454,4.29999999,105.09,105.07,8.71328598]
[1770045492453,4.29999999,105.09,105.05,8.71328598]
[1770045492756,4.29999999,105.11,105.07,8.71328598]
[1770045492933,4.29999999,105.1,105.07,8.71328598]
[1770045493129,13.01328597,105.1,105.06,8.71328598]
[1770045493337,4.29999999,105.09,105.06,8.71328598]
[1770045493841,4.29999999,105.09,105.05,8.71328598]
[1770045494034,4.29999999,105.09,105.05,9.51915978]
[1770045494253,4.29999999,105.09,105.06,8.71328598]
[1770045495050,4.29999999,105.09,105.05,8.71328598]
[1770045495238,4.29999999,105.09,105.06,8.71328598]
[1770045496471,4.29999999,105.11,105.07,8.71328598]
[1770045496653,13.01328597,105.09,105.05,8.71328598]
[1770045496841,4.29999999,105.1,105.07,8.71328598]
[1770045497852,4.29999999,105.1,105.08,8.71328598]
[1770045498063,4.29999999,105.1,105.07,8.71328598]
[1770045498361,4.29999999,105.1,105.08,8.71328598]
[1770045498589,4.29999999,105.12,105.09,8.71328598]
[1770045498861,4.29999999,105.1,105.07,8.71328598]
[1770045499038,4.29999999,105.09,105.06,8.71328598]
[1770045499439,4.29999999,105.12,105.08,8.71328598]
[1770045499964,4.43311891,105.1,105.04,0.40000001]
[1770045500261,4.43311891,105.1,105.07,8.71328598]
[1770045500435,4.43311891,105.1,105.05,9.51883532]
[1770045500436,4.43311891,105.1,105.06,8.71328598]
[1770045500638,4.43311891,105.09,105.06,8.71328598]
[1770045501666,4.43311891,105.09,105.07,8.71328598]
[1770045502562,4.43311891,105.09,105.06,8.71328598]
[1770045503265,4.43311891,105.09,105.05,8.71328598]
[1770045503962,4.43311891,105.09,105.06,8.71328598]
[1770045504268,4.43311891,105.09,105.05,8.71328598]
[1770045504468,4.43311891,105.08,105.05,8.71328598]
[1770045505259,4.43311891,105.08,105.04,8.71328598]
[1770045505482,4.43311891,105.08,105.05,8.71328598]
[1770045506540,4.43311891,105.1,105.06,8.71328598]
[1770045506745,4.43311891,105.1,105.07,8.71328598]
[1770045506942,4.43311891,105.1,105.06,8.71328598]
[1770045507342,4.43311891,105.12,105.09,8.71328598]
[1770045508567,4.43311891,105.12,105.07,0.40000001]
[1770045508750,4.43311891,105.12,105.1,8.71328598]
[1770045509373,4.43311891,105.12,105.09,8.71328598]
[1770045509570,4.43311891,105.12,105.07,9.91695399]
[1770045509571,4.43311891,105.16,105.11,8.71328598]
[1770045509868,4.43311891,105.18,105.15,8.71328598]
[1770045510168,4.43311891,105.18,105.1,60.14151442]
[1770045510476,4.43311891,105.16,105.12,8.71328598]
[1770045510674,4.43311891,105.16,105.09,9.91547056]
[1770045510964,4.43311891,105.13,105.09,8.71328598]
[1770045511149,4.43311891,105.13,105.1,8.71328598]
[1770045511784,13.14640489,105.13,105.09,8.71328598]
[1770045511998,4.43311891,105.13,105.1,8.71328598]
[1770045512295,4.43311891,105.15,105.11,8.71328598]
[1770045512789,4.43311891,105.15,105.12,8.71328598]
[1770045513292,4.43311891,105.15,105.11,8.71328598]
[1770045513701,4.43311891,105.14,105.06,0.40000001]
[1770045513867,4.43311891,105.11,105.07,8.71328598]
[1770045514264,4.43311891,105.1,105.06,8.71328598]
[1770045514478,4.43311891,105.1,105.07,8.71328598]
[1770045514890,4.43311891,105.1,105.06,8.71328598]
[1770045514891,13.14640489,105.1,105.06,8.71328598]
[1770045515092,13.14640489,105.1,105.05,8.71328598]
[1770045515301,4.43311891,105.09,105.05,8.71328598]
[1770045515494,13.14640489,105.09,105.05,8.71328598]
[1770045516478,4.43311891,105.09,105.05,8.71328598]
[1770045516683,4.43311891,105.11,105.07,8.71328598]
[1770045516892,4.43311891,105.11,105.08,8.71328598]
[1770045517198,4.43311891,105.11,105.07,8.71328598]
[1770045518273,4.43311891,105.11,105.08,8.71328598]
[1770045518472,4.43311891,105.11,105.05,0.40000001]
[1770045518690,4.43311891,105.11,105.07,8.71328598]
[1770045519395,4.43311891,105.09,105.06,8.71328598]
[1770045519595,4.43311891,105.09,105.05,8.71328598]
[1770045519798,4.43311891,105.08,105.04,8.71328598]
[1770045520373,4.43311891,105.08,105.05,8.71328598]
[1770045520573,13.14640489,105.08,105.04,8.71328598]
[1770045521699,4.43311891,105.08,105.05,8.71328598]
[1770045522586,4.43311891,105.11,105.07,8.71328598]
[1770045522799,4.43311891,105.11,105.06,0.40000001]
[1770045522973,27.55311891,105.13,105.09,8.71328598]
[1770045523169,13.14640489,105.12,105.04,60.16036847]
[1770045523373,4.43311891,105.1,105.06,8.71328598]
[1770045523778,13.14640489,105.1,105.06,8.71328598]
[1770045524205,4.43311891,105.1,105.06,8.71328598]
[1770045524581,4.43311891,105.1,105.07,8.71328598]
[1770045525303,4.43311891,105.1,105.05,0.40000001]
[1770045525609,4.43311891,105.11,105.08,8.71328598]
[1770045526284,13.14640489,105.15,105.1,8.71328598]
[1770045526597,4.43311891,105.14,105.1,8.71328598]
[1770045526775,4.43311891,105.13,105.1,8.71328598]
[1770045527189,4.43311891,105.12,105.07,0.40000001]
[1770045527396,8.71328598,105.11,105.07,8.71328598]
[1770045527597,13.14640489,105.1,105.05,0.40000001]
[1770045527797,13.04876383,105.09,105.05,8.71328598]
[1770045528016,4.33547785,105.07,105.03,8.71328598]
[1770045528308,4.33547785,105.07,105.02,9.5215821]
[1770045528309,4.33547785,105.03,105.0,8.71328598]
[1770045528791,4.33547785,105.03,104.96,0.40000001]
[1770045528792,4.33547785,105.02,104.96,0.40000001]
[1770045528990,4.33547785,105.0,104.96,8.71328598]
[1770045529301,4.33547785,104.98,104.94,8.71328598]
[1770045529499,4.33547785,105.0,104.94,8.71328598]
[1770045529700,4.33547785,105.0,104.92,24.02616857]
[1770045529701,13.04876383,104.98,104.92,9.73069239]
[1770045529876,13.2019929,104.97,104.92,0.2]
[1770045530197,13.2019929,104.94,104.92,0.2]
[1770045530398,4.48870692,104.93,104.89,8.71328598]
[1770045530603,4.48870692,104.93,104.9,9.53276052]
[1770045530804,13.2019929,104.97,104.92,18.24420852]
[1770045530994,4.48870692,104.97,104.93,8.71328598]
[1770045531197,13.2019929,104.97,104.91,10.13166222]
[1770045531398,13.2019929,104.97,104.94,8.71328598]
[1770045531399,4.48870692,104.97,104.94,8.71328598]
[1770045531788,4.48870692,104.97,104.95,8.71328598]
[1770045531990,4.48870692,105.01,104.96,8.71328598]
[1770045532202,4.48870692,105.0,104.97,8.71328598]
[1770045532703,13.2019929,105.02,104.98,8.71328598]
[1770045532903,4.48870692,105.0,104.96,8.71328598]
[1770045533085,4.48870692,104.99,104.96,8.71328598]
[1770045533288,13.2019929,104.99,104.95,8.71328598]
[1770045533486,4.48870692,105.0,104.96,8.71328598]
[1770045533688,13.2019929,105.0,104.96,8.71328598]
[1770045533891,4.48870692,104.99,104.96,8.71328598]
[1770045534097,4.48870692,104.99,104.95,8.71328598]
[1770045534715,4.48870692,104.97,104.94,8.71328598]
[1770045534912,13.2019929,104.97,104.93,8.71328598]
[1770045535113,13.2019929,104.95,104.91,8.71328598]
[1770045535304,4.48870692,104.93,104.89,8.71328598]
[1770045535508,13.2019929,104.93,104.88,8.71328598]
[1770045535711,4.48870692,104.91,104.87,8.71328598]
[1770045536111,4.48870692,104.91,104.86,0.3230551]
[1770045536112,4.48870692,104.87,104.86,0.3230551]
[1770045536416,8.71328598,104.89,104.86,0.3230551]
[1770045536620,4.27527085,104.92,104.82,0.2]
[1770045536621,8.71328598,104.87,104.82,0.2]
[1770045536831,8.71328598,104.86,104.82,0.2]
[1770045537204,8.71328598,104.85,104.82,0.2]
[1770045537722,8.71328598,104.87,104.83,8.71328598]
[1770045537919,8.71328598,104.88,104.84,8.71328598]
[1770045538111,8.71328598,104.89,104.85,8.71328598]
[1770045538425,13.2019929,104.89,104.84,8.71328598]
[1770045538616,4.48870692,104.91,104.86,8.71328598]
[1770045538924,4.48870692,104.92,104.89,8.71328598]
[1770045539133,4.48870692,104.92,104.88,8.71328598]
[1770045539427,13.2019929,104.94,104.9,8.71328598]
[1770045539597,4.48870692,104.91,104.85,3.06232759]
[1770045540014,13.2019929,104.94,104.89,8.71328598]
[1770045540222,4.48870692,104.96,104.91,8.71328598]
[1770045540411,13.2019929,104.97,104.93,8.71328598]
[1770045540617,13.2019929,104.96,104.92,8.71328598]
[1770045540802,13.2019929,104.96,104.91,8.71328598]
[1770045541119,13.2019929,104.95,104.89,3.06232759]
[1770045541320,4.48870692,104.95,104.91,8.71328598]
[1770045541500,13.2019929,104.95,104.91,8.71328598]
[1770045541899,13.2019929,104.97,104.93,8.71328598]
[1770045542199,13.2019929,104.95,104.9,8.71328598]
[1770045542417,4.48870692,104.93,104.89,8.71328598]
[1770045542814,4.48870692,104.93,104.89,18.24694111]
[1770045543006,8.71328598,104.95,104.91,8.71328598]
[1770045543221,13.2019929,104.97,104.93,8.71328598]
[1770045543424,13.2019929,104.96,104.91,8.71328598]
[1770045543724,13.2019929,104.96,104.92,8.71328598]
[1770045543922,5.64518502,105.0,104.9,4.06825384]
[1770045544125,8.71328598,104.95,104.9,8.71328598]
[1770045544326,8.71328598,104.93,104.88,12.78153982]
[1770045544529,0.14216157,104.98,104.9,12.78153982]
[1770045544701,0.14216157,104.98,104.87,4.06825384]
[1770045544702,8.71328598,104.93,104.87,4.06825384]
[1770045545028,8.71328598,104.93,104.89,8.71328598]
[1770045545200,8.71328598,104.92,104.87,8.71328598]
[1770045545406,0.14216157,104.97,104.88,8.71328598]
[1770045545704,8.71328598,104.92,104.87,12.78153982]
[1770045546018,8.71328598,104.9,104.86,4.06825384]
[1770045546219,13.2019929,104.93,104.89,8.71328598]
[1770045546417,4.48870692,104.93,104.89,8.71328598]
[1770045546622,13.2019929,104.93,104.89,8.71328598]
[1770045546926,13.2019929,104.92,104.88,8.71328598]
[1770045547725,4.27527085,104.96,104.87,26.48]
[1770045547726,4.48870692,104.96,104.9,12.78153982]
[1770045547926,13.2019929,104.95,104.91,8.71328598]
[1770045548127,4.48870692,104.95,104.91,8.71328598]
[1770045548337,13.2019929,104.95,104.91,8.71328598]
[1770045548510,13.22792209,104.95,104.9,12.80746901]
[1770045548832,8.73921517,104.91,104.85,44.75632566]
[1770045549126,8.73921517,104.89,104.85,30.54825384]
[1770045549309,8.73921517,104.88,104.84,8.73921517]
[1770045549504,8.73921517,104.87,104.84,26.48]
[1770045549727,13.22792209,104.86,104.82,0.2]
[1770045549921,8.73921517,104.87,104.82,22.54705483]
[1770045550121,13.22792209,104.88,104.83,12.80746901]
[1770045550425,8.73921517,104.87,104.83,4.06825384]
[1770045551131,8.73921517,104.87,104.83,12.80746901]
[1770045551625,4.48870692,104.89,104.83,4.06825384]
[1770045551927,8.73921517,104.88,104.84,30.54825384]
[1770045552109,8.73921517,104.88,104.84,39.28746901]
[1770045552426,8.73921517,104.9,104.86,8.73921517]
[1770045552623,4.48870692,104.91,104.86,8.73921517]
[1770045552824,8.73921517,104.88,104.83,22.34660105]
[1770045553130,13.22792209,104.89,104.84,12.80746901]
[1770045553633,8.73921517,104.88,104.84,4.06825384]
[1770045554009,13.22792209,104.88,104.83,35.21921517]
[1770045554210,13.22792209,104.88,104.83,39.28746901]
[1770045554421,4.27527085,104.92,104.84,12.80746901]
[1770045554422,13.22792209,104.9,104.84,12.80746901]
[1770045554630,13.22792209,104.9,104.85,12.80746901]
[1770045555127,13.22792209,104.92,104.87,8.73921517]
[1770045555329,4.48870692,104.92,104.87,12.80746901]
[1770045555537,13.22792209,104.91,104.87,26.5]
[1770045555711,13.22792209,104.9,104.86,26.5]
[1770045555911,4.48870692,104.9,104.86,26.5]
[1770045556110,4.48870692,104.9,104.86,35.23921517]
[1770045556332,13.22792209,104.9,104.86,26.5]
[1770045560027,4.08564807,104.87,104.82,4.57933955]
[1770045560332,4.22780964,104.9,104.85,22.65598908]
[1770045560838,12.96702481,104.89,104.84,8.73921517]
[1770045561136,4.08564807,104.89,104.85,8.73921517]
[1770045561328,8.73921517,104.91,104.85,13.11855472]
[1770045561527,12.82486324,104.92,104.87,13.11855472]
[1770045561727,4.08564807,104.98,104.9,8.73921517]
[1770045561927,4.08564807,104.97,104.93,8.73921517]
[1770045562131,4.08564807,104.97,104.93,35.23921517]
[1770045562329,0.1,105.04,104.89,4.37933955]
[1770045562330,4.08564807,104.95,104.89,4.37933955]
[1770045562643,4.08564807,104.95,104.91,8.73921517]
[1770045562949,4.08564807,104.95,104.92,26.5]
[1770045563744,4.08564807,104.94,104.9,8.73921517]
[1770045563945,4.08564807,104.94,104.91,26.5]
[1770045564827,4.08564807,104.96,104.92,8.73921517]
[1770045565035,4.08564807,104.95,104.91,26.5]
[1770045565248,4.08564807,104.95,104.91,35.23921517]
[1770045565548,4.08564807,104.95,104.92,26.5]
[1770045565751,4.08564807,104.94,104.92,22.0]
[1770045566424,8.73921517,104.97,104.92,35.11855472]
[1770045566650,12.82486324,104.98,104.93,26.5]
[1770045566823,0.14216157,104.97,104.93,35.23921517]
[1770045567239,104.1,105.04,104.95,8.73921517]
[1770045567240,12.82486324,105.0,104.95,8.73921517]
[1770045567452,12.82486324,105.0,104.95,35.23921517]
[1770045567632,4.08564807,104.99,104.95,35.23921517]
[1770045567948,5.36086188,105.03,104.95,35.23921517]
[1770045567949,8.73921517,105.03,104.98,8.73921517]
[1770045568152,12.82486324,105.03,104.99,8.73921517]
[1770045568446,4.04479158,104.99,104.94,39.61855472]
[1770045568629,8.73921517,104.98,104.94,30.87933955]
[1770045568824,12.78400675,104.98,104.93,13.11855472]
[1770045569030,12.78400675,104.98,104.93,39.61855472]
[1770045569236,12.78400675,104.97,104.93,26.5]
[1770045569436,12.78400675,104.96,104.91,8.73921517]
[1770045569749,0.14216157,104.97,104.91,8.73921517]
[1770045569750,9.02353831,104.94,104.91,26.48]
[1770045569955,8.73921517,104.93,104.91,26.48]
[1770045570449,8.73921517,104.93,104.91,26.43914351]
[1770045570639,0.28432314,104.95,104.91,26.43914351]
[1770045570837,8.73921517,104.94,104.91,26.43914351]
[1770045571427,12.74355883,104.94,104.91,26.43914351]
[1770045572249,0.28432314,104.95,104.91,26.43914351]
[1770045572250,9.02353831,104.95,104.91,26.43914351]
[1770045573153,8.73921517,104.95,104.92,4.37933955]
[1770045573534,8.88137674,104.96,104.92,4.37933955]
[1770045574059,8.73921517,105.0,104.92,4.37933955]
[1770045574060,4.10434366,105.04,104.95,8.73921517]
[1770045574237,12.74355883,105.03,104.98,8.73921517]
[1770045574439,4.00434366,105.03,104.99,8.73921517]
[1770045574643,12.74355883,105.03,104.98,8.73921517]
[1770045575029,4.00434366,105.03,104.99,8.73921517]
[1770045575250,12.74355883,105.03,104.98,8.73921517]
[1770045575755,12.74355883,105.03,104.98,35.21921517]
[1770045576855,0.14216157,105.03,104.99,8.73921517]
[1770045577055,0.14216157,105.03,104.98,39.59855472]
[1770045577056,8.88137674,105.03,104.98,39.59855472]
[1770045577230,0.14216157,105.03,105.0,8.73921517]
[1770045577429,0.28432314,105.03,105.0,8.73921517]
[1770045577651,0.1,105.04,105.01,4.37933955]
[1770045578151,0.1,105.04,105.01,13.11855472]
[1770045578351,0.1,105.04,105.02,13.11855472]
[1770045578657,0.1,105.04,105.02,4.37933955]
[1770045579037,0.1,105.04,105.01,8.73921517]
[1770045579442,0.1,105.04,105.02,8.73921517]
[1770045579841,4.00434366,105.11,105.04,4.37933955]
[1770045580030,12.74355883,105.1,105.05,13.11855472]
[1770045580638,8.73921517,105.11,105.06,4.37933955]
[1770045580842,4.00434366,105.11,105.07,8.73921517]
[1770045581155,0.28432314,105.11,105.07,8.73921517]